bitfinex/quotes_SOLUSD_20240920
["timestamp","ask_amount","ask_price","bid_price","bid_amount"]
[1726818133813,15.1109,150.58,150.52,20.0]
[1726818134117,15.1109,150.58,150.5,20.0]
[1726818135113,15.1109,150.58,150.52,20.0]
[1726818136498,15.1109,150.58,150.54,20.0]
[1726818137793,15.1109,150.58,150.52,20.0]
[1726818145933,15.1109,150.58,150.51,21.5785701]
[1726818145934,15.1109,150.58,150.53,13.56905024]
[1726818146940,28.67995024,150.58,150.49,20.0]
[1726818147120,28.67995024,150.58,150.48,6.91822612]
[1726818147121,6.6423,150.55,150.48,6.91822612]
[1726818147333,13.56905024,150.54,150.47,13.56905024]
[1726818147540,15.1109,150.58,150.53,13.56905024]
[1726818147718,6.42148985,150.6,150.55,13.56905024]
[1726818148035,6.42148985,150.6,150.57,13.56905024]
[1726818148752,6.53903315,150.6,150.57,13.56905024]
[1726818151443,6.53903315,150.6,150.5,16.0362]
[1726818151656,6.53903315,150.6,150.55,20.0]
[1726818153131,6.53903315,150.6,150.54,13.56905024]
[1726818154121,6.6406,150.59,150.54,13.56905024]
[1726818154322,6.53903315,150.6,150.54,13.56905024]
[1726818155224,13.17913315,150.6,150.54,13.56905024]
[1726818158534,6.53903315,150.6,150.54,13.56905024]
[1726818166157,6.53903315,150.6,150.56,13.56905024]
[1726818166365,6.53903315,150.6,150.59,13.56905024]
[1726818171157,6.53903315,150.6,150.58,13.56905024]
[1726818175253,6.53903315,150.6,150.59,14.89682497]
[1726818175455,6.53903315,150.6,150.59,13.56905024]
[1726818180653,0.1175433,150.6,150.59,13.56905024]
[1726818181181,0.1175433,150.6,150.55,0.25098]
[1726818181361,0.1175433,150.6,150.57,20.0]
[1726818181567,0.1175433,150.6,150.58,14.89704472]
[1726818181753,0.1175433,150.6,150.58,13.56905024]
[1726818182753,0.1175433,150.6,150.59,0.12549]
[1726818182962,0.1175433,150.6,150.59,0.25098]
[1726818183882,0.1175433,150.6,150.59,20.25098]
[1726818184375,0.1175433,150.6,150.57,20.0]
[1726818184588,0.1175433,150.6,150.57,33.56905024]
[1726818185579,0.1175433,150.6,150.59,13.56905024]
[1726818185879,0.1175433,150.6,150.59,33.56905024]
[1726818186383,0.1175433,150.6,150.59,57.72240424]
[1726818187977,0.1175433,150.6,150.59,59.04986913]
[1726818188154,0.3297558,150.65,150.64,33.94552024]
[1726818191866,0.3297558,150.65,150.64,33.56905024]
[1726818192769,0.3297558,150.65,150.64,33.94552024]
[1726818195567,0.3297558,150.65,150.64,57.72240424]
[1726818196371,0.3297558,150.65,150.64,64.38640424]
[1726818197489,0.3297558,150.65,150.64,80.07290424]
[1726818197989,0.3297558,150.65,150.64,73.40890424]
[1726818198170,0.1075807,150.66,150.65,44.153354]
[1726818198365,0.1075807,150.66,150.65,57.72240424]
[1726818198673,0.1075807,150.66,150.65,64.38640424]
[1726818199273,0.1075807,150.66,150.65,57.72240424]
[1726818208474,0.1075807,150.66,150.65,44.153354]
[1726818208794,0.1075807,150.66,150.65,33.94552024]
[1726818211697,0.1075807,150.66,150.65,20.37647]
[1726818211891,0.1075807,150.66,150.59,12.12290223]
[1726818212096,0.1075807,150.66,150.61,13.56905024]
[1726818213098,0.1075807,150.66,150.62,13.56905024]
[1726818214392,0.1075807,150.66,150.62,20.0]
[1726818214991,0.1075807,150.66,150.6,20.0]
[1726818215191,20.20705024,150.65,150.58,25.46046482]
[1726818215376,13.56905024,150.65,150.58,33.56905024]
[1726818215694,13.67663094,150.66,150.58,33.56905024]
[1726818218588,20.31413094,150.66,150.58,33.56905024]
[1726818218905,0.1075807,150.66,150.6,20.0]
[1726818219885,6.3583,150.65,150.59,20.0]
[1726818220195,6.3583,150.65,150.59,33.56905024]
[1726818220375,6.3583,150.65,150.6,14.89670902]
[1726818220577,6.3583,150.65,150.61,14.89670219]
[1726818220773,0.1075807,150.66,150.63,13.56905024]
[1726818220999,0.1075807,150.66,150.64,1.32744331]
[1726818221293,0.1075807,150.66,150.63,13.56905024]
[1726818222203,0.1075807,150.66,150.61,20.0]
[1726818222896,0.1075807,150.66,150.6,20.0]
[1726818225503,22.7891,150.64,150.53,7.19994539]
[1726818225806,13.56905024,150.61,150.54,13.56905024]
[1726818225994,13.56905024,150.61,150.53,7.19994539]
[1726818226199,13.56905024,150.61,150.53,13.82681074]
[1726818226703,20.20865024,150.61,150.53,13.82681074]
[1726818226901,20.20865024,150.61,150.56,0.12549]
[1726818227095,20.20865024,150.61,150.54,13.69454024]
[1726818227309,13.56905024,150.61,150.55,20.0]
[1726818229702,13.56905024,150.6,150.53,13.82681074]
[1726818230000,13.56905024,150.6,150.54,20.0]
[1726818230776,6.6407,150.59,150.54,20.0]
[1726818230998,13.56905024,150.6,150.54,20.0]
[1726818231285,20.20905024,150.61,150.54,33.56905024]
[1726818232912,22.7891,150.64,150.55,13.56905024]
[1726818232913,23.776884,150.63,150.55,13.56905024]
[1726818233084,13.56905024,150.62,150.55,13.56905024]
[1726818234409,6.6397,150.61,150.55,13.56905024]
[1726818234611,20.20875024,150.61,150.54,13.56905024]
[1726818234802,20.20875024,150.61,150.55,20.0]
[1726818236897,20.20875024,150.61,150.53,13.82681074]
[1726818237099,0.25098,150.62,150.53,13.82681074]
[1726818237309,43.98473424,150.63,150.55,13.56905024]
[1726818237807,20.20825024,150.62,150.55,13.56905024]
[1726818238489,20.20825024,150.62,150.54,13.56905024]
[1726818238992,20.20825024,150.62,150.53,0.2577605]
[1726818238993,20.20875024,150.61,150.55,20.0]
[1726818239213,13.56905024,150.6,150.55,20.0]
[1726818239899,13.56905024,150.6,150.54,20.0]
[1726818240103,13.56905024,150.59,150.53,20.2577605]
[1726818240610,13.56905024,150.58,150.53,0.2577605]
[1726818241403,20.21005024,150.58,150.53,0.2577605]
[1726818241607,13.56905024,150.56,150.53,0.2577605]
[1726818242108,20.21135024,150.55,150.53,0.2577605]
[1726818242688,13.56905024,150.56,150.53,0.2577605]
[1726818242904,36.31395024,150.57,150.53,0.2577605]
[1726818244790,29.67225024,150.57,150.53,0.2577605]
[1726818245411,6.6422,150.56,150.53,0.2577605]
[1726818245590,13.56905024,150.55,150.53,0.2577605]
[1726818245794,6.6427,150.54,150.53,0.2577605]
[1726818247034,30.419584,150.54,150.53,0.2577605]
[1726818247220,30.796054,150.54,150.53,0.2577605]
[1726818249108,30.796054,150.54,150.48,0.2577605]
[1726818249109,23.776884,150.5,150.48,0.2577605]
[1726818249311,37.34593424,150.49,150.48,0.2577605]
[1726818249610,59.61720424,150.49,150.48,0.2577605]
[1726818250013,52.532354,150.49,150.48,0.2577605]
[1726818250218,66.10140424,150.49,150.48,0.2577605]
[1726818250418,66.10140424,150.49,150.43,0.3297558]
[1726818250419,13.56905024,150.45,150.43,0.3297558]
[1726818251207,24.153354,150.48,150.43,0.3297558]
[1726818251513,37.72240424,150.48,150.43,0.3297558]
[1726818251690,37.47142424,150.48,150.43,0.3297558]
[1726818251886,23.902374,150.48,150.43,0.3297558]
[1726818252793,0.25098,150.47,150.43,0.3297558]
[1726818253098,23.902374,150.46,150.43,0.3297558]
[1726818253700,45.14186638,150.46,150.43,0.3297558]
[1726818254815,0.12549,150.45,150.43,0.3297558]
[1726818255010,0.25098,150.45,150.43,0.3297558]
[1726818258324,21.23949238,150.47,150.43,0.3297558]
[1726818258506,6.6456,150.48,150.43,0.3297558]
[1726818259425,6.6458,150.47,150.43,0.3297558]
[1726818259607,23.776884,150.46,150.43,0.3297558]
[1726818261300,0.12549,150.45,150.43,0.3297558]
[1726818261729,0.37647,150.45,150.43,0.3297558]
[1726818262037,23.776884,150.44,150.43,0.3297558]
[1726818262611,24.027864,150.44,150.43,0.3297558]
[1726818263033,30.674964,150.44,150.43,0.3297558]
[1726818263410,30.800454,150.44,150.43,0.3297558]
[1726818264240,24.153354,150.44,150.43,0.3297558]
[1726818265311,30.800454,150.44,150.43,0.3297558]
[1726818271947,44.40371501,150.44,150.43,0.3297558]
[1726818272246,37.75661501,150.44,150.43,0.3297558]
[1726818272415,21.7341,150.49,150.43,0.3297558]
[1726818272732,13.60326101,150.48,150.43,0.3297558]
[1726818273627,22.7132,150.53,150.43,0.3297558]
[1726818273847,13.60326101,150.5,150.43,0.3297558]
[1726818274146,21.23331751,150.52,150.43,0.3297558]
[1726818274526,6.6446,150.5,150.43,0.3297558]
[1726818274824,23.902374,150.49,150.43,0.3297558]
[1726818275130,30.547274,150.49,150.43,0.3297558]
[1726818275644,6.89638,150.48,150.43,0.3297558]
[1726818275856,23.776884,150.47,150.43,0.3297558]
[1726818279525,24.027864,150.48,150.43,0.3297558]
[1726818279726,6.89668,150.48,150.43,0.3297558]
[1726818280052,23.776884,150.47,150.43,0.3297558]
[1726818280726,6.6467,150.45,150.43,0.3297558]
[1726818280923,23.776884,150.44,150.43,0.3297558]
[1726818281240,24.153354,150.44,150.43,0.3297558]
[1726818281446,30.800454,150.44,150.43,0.3297558]
[1726818283921,23.902374,150.44,150.43,0.3297558]
[1726818286549,23.776884,150.44,150.43,0.3297558]
[1726818286849,24.153354,150.44,150.43,0.3297558]
[1726818287733,23.776884,150.44,150.43,0.3297558]
[1726818287938,24.153354,150.44,150.43,0.3297558]
[1726818288138,30.800454,150.44,150.43,0.3297558]
[1726818288337,24.153354,150.44,150.43,0.3297558]
[1726818294258,37.75343395,150.44,150.43,0.3297558]
[1726818294956,24.153354,150.44,150.43,0.3297558]
[1726818295453,37.75343395,150.44,150.43,0.3297558]
[1726818298257,24.153354,150.44,150.43,0.3297558]
[1726818298461,37.75343395,150.44,150.43,0.3297558]
[1726818299960,30.800454,150.44,150.43,0.3297558]
[1726818300257,37.75343395,150.44,150.43,0.3297558]
[1726818300839,44.40053395,150.44,150.43,0.3297558]
[1726818304454,37.75343395,150.44,150.43,0.3297558]
[1726818305846,24.153354,150.44,150.43,0.3297558]
[1726818306046,37.75343395,150.44,150.43,0.3297558]
[1726818306559,24.153354,150.44,150.43,0.3297558]
[1726818306762,37.75343395,150.44,150.43,0.3297558]
[1726818307465,24.153354,150.44,150.43,0.3297558]
[1726818308242,23.91989814,150.51,150.43,0.3297558]
[1726818308243,15.6618,150.55,150.43,16.2719558]
[1726818308447,6.6433,150.53,150.43,16.2719558]
[1726818308642,13.60007995,150.51,150.43,16.2719558]
[1726818308843,22.3041,150.55,150.43,16.2719558]
[1726818309149,13.60007995,150.53,150.46,13.60007995]
[1726818309350,6.93422938,150.57,150.47,6.3896]
[1726818309654,16.4308,150.59,150.47,6.3896]
[1726818309655,13.60007995,150.55,150.48,13.60007995]
[1726818311270,24.153354,150.54,150.48,13.60007995]
[1726818311569,24.153354,150.54,150.47,6.3896]
[1726818317558,24.153354,150.54,150.48,15.4132]
[1726818318874,6.6409,150.59,150.48,29.01327995]
[1726818319051,13.60007995,150.57,150.5,13.60007995]
[1726818319557,13.60007995,150.59,150.5,13.60007995]
[1726818320773,0.12549,150.58,150.5,13.60007995]
[1726818320979,24.153354,150.58,150.5,13.60007995]
[1726818322652,24.153354,150.58,150.48,15.4132]
[1726818322653,24.153354,150.58,150.52,13.60007995]
[1726818322850,0.37647,150.58,150.53,6.6544]
[1726818324664,0.12549,150.58,150.54,15.4721]
[1726818326775,0.37647,150.58,150.54,15.4721]
[1726818326952,23.776884,150.55,150.54,15.4721]
[1726818327981,13.60007995,150.58,150.54,15.4721]
[1726818328373,23.776884,150.57,150.54,15.4721]
[1726818328962,0.12549,150.57,150.54,15.4721]
[1726818329156,23.776884,150.58,150.54,15.4721]
[1726818333092,23.776884,150.56,150.54,15.4721]
[1726818335290,23.902374,150.59,150.54,15.4721]
[1726818335585,0.12549,150.58,150.54,15.4721]
[1726818336173,0.25098,150.59,150.54,15.4721]
[1726818337263,24.027864,150.59,150.54,15.4721]
[1726818344282,0.25098,150.59,150.54,15.4721]
[1726818347978,0.2577605,150.6,150.55,13.60007995]
[1726818348189,0.2577605,150.6,150.57,13.60007995]
[1726818348689,0.2577605,150.6,150.59,35.03517995]
[1726818349283,0.2577605,150.6,150.59,21.4351]
[1726818350270,37.63472445,150.6,150.55,22.5785]
[1726818350476,24.0346445,150.6,150.55,22.5785]
[1726818351591,0.2577605,150.6,150.55,22.5785]
[1726818353208,0.2577605,150.6,150.55,36.17857995]
[1726818354398,0.2577605,150.6,150.57,13.60007995]
[1726818355099,0.2577605,150.6,150.58,13.60007995]
[1726818355282,0.2577605,150.6,150.59,13.60007995]
[1726818355484,0.2577605,150.6,150.59,55.20657995]
[1726818360281,0.2577605,150.64,150.6,20.0]
[1726818360480,0.2577605,150.64,150.63,13.60007995]
[1726818360886,0.2577605,150.64,150.63,33.60007995]
[1726818363201,0.2577605,150.64,150.6,20.0]
[1726818363411,0.2577605,150.64,150.62,20.0]
[1726818365801,0.2577605,150.64,150.62,33.60007995]
[1726818365979,0.2577605,150.64,150.62,13.60007995]
[1726818366186,0.2577605,150.64,150.63,20.0]
[1726818369006,0.2577605,150.64,150.6,20.0]
[1726818369209,0.2577605,150.64,150.59,35.20657995]
[1726818369715,37.75343395,150.63,150.55,35.94407995]
[1726818370008,23.776884,150.63,150.58,13.60007995]
[1726818370212,0.2577605,150.64,150.58,13.60007995]
[1726818370391,0.2577605,150.64,150.57,13.60007995]
[1726818370800,0.2577605,150.64,150.58,20.0]
[1726818371609,13.60007995,150.63,150.56,20.0]
[1726818371809,13.60007995,150.61,150.55,22.344]
[1726818372113,23.776884,150.61,150.56,13.60007995]
[1726818372497,23.776884,150.61,150.55,22.344]
[1726818372697,13.60007995,150.59,150.51,36.52577995]
[1726818372898,0.37647,150.57,150.48,6.9177605]
[1726818373101,0.37647,150.57,150.48,20.51784045]
[1726818373297,23.776884,150.55,150.48,13.85784045]
[1726818373903,23.776884,150.55,150.48,0.2577605]
[1726818374820,23.776884,150.55,150.48,20.2577605]
[1726818375006,0.12549,150.59,150.5,21.21720229]
[1726818375310,24.153354,150.6,150.48,28.79681649]
[1726818375512,0.12549,150.57,150.49,20.0]
[1726818375717,0.12549,150.57,150.5,21.21720229]
[1726818375907,0.12549,150.59,150.52,21.21720229]
[1726818377821,0.25098,150.59,150.52,21.21720229]
[1726818382831,0.12549,150.59,150.54,36.41720229]
[1726818383013,0.12549,150.59,150.56,21.21720229]
[1726818383614,0.12549,150.63,150.56,21.21720229]
[1726818384030,0.12549,150.63,150.55,20.0]
[1726818384321,0.37647,150.63,150.55,20.0]
[1726818384527,0.37647,150.59,150.52,21.21720229]
[1726818384739,30.793854,150.59,150.5,36.34470229]
[1726818385325,24.153354,150.59,150.5,36.34470229]
[1726818385530,24.153354,150.59,150.52,21.21720229]
[1726818386627,0.37647,150.59,150.52,21.21720229]
[1726818390725,23.776884,150.58,150.51,20.0]
[1726818390926,0.37647,150.59,150.51,20.0]
[1726818392726,0.37647,150.59,150.5,15.1275]
[1726818392727,23.776884,150.58,150.5,15.1275]
[1726818392930,0.37647,150.57,150.48,0.2577605]
[1726818393130,23.776884,150.56,150.48,0.2577605]
[1726818393327,0.37647,150.55,150.48,0.2577605]
[1726818393815,24.153354,150.55,150.48,0.2577605]
[1726818394934,24.153354,150.55,150.48,21.47496279]
[1726818396015,0.37647,150.55,150.48,21.47496279]
[1726818397619,15.3537,150.59,150.48,21.47496279]
[1726818397620,21.9942,150.59,150.48,21.47496279]
[1726818397830,21.9942,150.59,150.5,21.21720229]
[1726818398441,15.3537,150.59,150.5,21.21720229]
[1726818398641,15.3537,150.59,150.52,21.21720229]
[1726818400441,24.153354,150.58,150.5,21.21720229]
[1726818400637,24.153354,150.58,150.51,20.0]
[1726818401921,23.776884,150.58,150.52,21.21720229]
[1726818402222,23.776884,150.58,150.53,20.0]
[1726818403329,15.3537,150.59,150.54,21.21720229]
[1726818404441,23.776884,150.58,150.53,20.0]
[1726818404741,23.776884,150.58,150.54,21.21720229]
[1726818406743,23.776884,150.58,150.52,21.21720229]
[1726818406921,23.776884,150.58,150.53,20.0]
[1726818408749,23.776884,150.58,150.52,21.21720229]
[1726818409239,23.776884,150.58,150.51,20.0]
[1726818409443,23.776884,150.58,150.48,21.47496279]
[1726818409444,0.37647,150.57,150.48,21.47496279]
[1726818409622,0.37647,150.57,150.48,0.2577605]
[1726818409946,0.37647,150.55,150.48,0.2577605]
[1726818410640,0.37647,150.55,150.48,21.47496279]
[1726818410835,23.776884,150.56,150.5,21.21720229]
[1726818412943,15.3537,150.59,150.52,21.21720229]
[1726818413147,15.3537,150.59,150.54,21.21720229]
[1726818414331,23.776884,150.58,150.54,21.21720229]
[1726818415749,23.902374,150.62,150.56,21.21720229]
[1726818415936,15.4114,150.63,150.58,21.21720229]
[1726818416335,0.2577605,150.64,150.58,21.21720229]
[1726818417547,0.2577605,150.64,150.57,20.0]
[1726818418841,0.25098,150.63,150.57,20.0]
[1726818419153,0.2577605,150.64,150.57,20.0]
[1726818419946,0.2577605,150.64,150.52,15.538]
[1726818419947,0.25098,150.63,150.58,21.21720229]
[1726818420152,0.25098,150.63,150.57,20.0]
[1726818420345,0.25098,150.63,150.54,21.21720229]
[1726818420346,0.12549,150.62,150.54,21.21720229]
[1726818420543,39.733264,150.61,150.52,36.75520229]
[1726818420850,0.25098,150.59,150.51,6.5605]
[1726818421041,0.25098,150.59,150.5,21.21720229]
[1726818422056,0.25098,150.59,150.51,20.0]
[1726818422236,0.25098,150.59,150.5,21.21720229]
[1726818422737,0.25098,150.59,150.52,21.21720229]
[1726818423044,23.902374,150.6,150.52,21.21720229]
[1726818423236,0.25098,150.59,150.52,21.21720229]
[1726818423428,0.25098,150.59,150.53,20.0]
[1726818423933,0.12549,150.58,150.51,20.0]
[1726818424348,0.25098,150.57,150.48,37.23936279]
[1726818424560,16.01088,150.55,150.48,0.2577605]
[1726818424857,0.12549,150.52,150.48,0.2577605]
[1726818428647,0.25098,150.53,150.48,0.2577605]
[1726818428956,23.902374,150.54,150.48,21.47496279]
[1726818429336,0.37647,150.53,150.48,0.2577605]
[1726818430560,23.776884,150.54,150.48,0.2577605]
[1726818435665,23.776884,150.54,150.48,21.47496279]
[1726818436358,15.7599,150.55,150.5,21.21720229]
[1726818437368,23.776884,150.54,150.49,20.0]
[1726818438260,0.37647,150.53,150.48,0.2577605]
[1726818439660,0.25098,150.53,150.48,0.2577605]
[1726818439960,0.12549,150.52,150.48,0.2577605]
[1726818440561,0.25098,150.53,150.48,0.2577605]
[1726818441467,23.776884,150.54,150.48,0.2577605]
[1726818441767,23.776884,150.54,150.49,20.0]
[1726818443964,0.37647,150.53,150.49,20.0]
[1726818444690,0.37647,150.53,150.48,0.2577605]
[1726818449474,15.7599,150.55,150.48,0.2577605]
[1726818449653,15.7599,150.55,150.48,21.47496279]
[1726818452193,24.027864,150.54,150.49,20.0]
[1726818452374,15.4815,150.59,150.5,21.21720229]
[1726818452675,15.4815,150.59,150.54,21.21720229]
[1726818454176,15.4815,150.59,150.52,21.21720229]
[1726818454354,15.4815,150.59,150.53,20.0]
[1726818454559,15.4815,150.59,150.52,21.21720229]
[1726818455374,24.153354,150.58,150.52,21.21720229]
[1726818455872,24.153354,150.58,150.51,20.0]
[1726818456182,24.153354,150.56,150.51,20.0]
[1726818456360,24.153354,150.56,150.48,21.47496279]
[1726818457775,24.153354,150.56,150.49,20.0]
[1726818457978,24.153354,150.56,150.48,0.2577605]
[1726818459779,30.795154,150.56,150.48,0.2577605]
[1726818460886,24.153354,150.56,150.48,0.2577605]
[1726818461876,30.795254,150.56,150.48,0.2577605]
[1726818464685,6.6411,150.58,150.48,0.2577605]
[1726818464976,6.6466,150.56,150.48,0.2577605]
[1726818465182,27.86380229,150.56,150.48,0.2577605]
[1726818465391,6.6424,150.55,150.48,0.2577605]
[1726818465985,24.027864,150.54,150.48,0.2577605]
[1726818466371,24.153354,150.54,150.48,0.2577605]
[1726818468489,0.37647,150.54,150.48,0.2577605]
[1726818468986,6.6466,150.56,150.48,21.47496279]
[1726818469168,15.2749,150.57,150.51,20.0]
[1726818470889,23.776884,150.56,150.51,20.0]
[1726818474592,23.776884,150.56,150.52,21.21720229]
[1726818475289,6.6106605,150.64,150.54,21.21720229]
[1726818475675,6.6106605,150.64,150.56,21.21720229]
[1726818476678,0.12549,150.63,150.56,21.21720229]
[1726818476993,0.12549,150.6,150.52,41.21720229]
[1726818477893,0.12549,150.59,150.52,41.21720229]
[1726818478392,0.25098,150.59,150.52,41.21720229]
[1726818479686,23.776884,150.61,150.54,21.21720229]
[1726818479980,6.6106605,150.64,150.54,21.21720229]
[1726818481296,24.153354,150.62,150.54,21.21720229]
[1726818482080,0.37647,150.62,150.52,41.21720229]
[1726818482289,30.793554,150.6,150.52,20.0]
[1726818482591,24.153354,150.6,150.52,20.0]
[1726818482798,24.153354,150.6,150.52,41.21720229]
[1726818482985,0.37647,150.6,150.52,41.21720229]
[1726818485102,0.37647,150.6,150.54,21.21720229]
[1726818485279,23.776884,150.61,150.55,20.0]
[1726818487205,23.776884,150.61,150.56,21.21720229]
[1726818489287,0.37647,150.6,150.55,20.0]
[1726818489597,0.37647,150.6,150.53,20.0]
[1726818490496,0.37647,150.6,150.54,21.21720229]
[1726818492299,0.37647,150.6,150.53,20.0]
[1726818492501,23.776884,150.57,150.51,16.1926]
[1726818492803,0.25098,150.56,150.5,21.21720229]
[1726818492988,0.12549,150.55,150.48,0.2577605]
[1726818494309,0.12549,150.55,150.48,20.2577605]
[1726818494614,0.12549,150.53,150.48,20.2577605]
[1726818496311,0.12549,150.53,150.48,41.47496279]
[1726818496607,23.776884,150.55,150.48,41.47496279]
[1726818496980,24.027864,150.56,150.48,41.47496279]
[1726818497386,0.25098,150.55,150.48,41.47496279]
[1726818498396,0.12549,150.54,150.48,41.47496279]
[1726818499105,23.902374,150.54,150.48,41.47496279]
[1726818499407,0.25098,150.53,150.48,41.47496279]
[1726818500197,23.776884,150.54,150.48,41.47496279]
[1726818500382,15.8619,150.59,150.52,21.21720229]
[1726818500586,15.8619,150.59,150.48,41.47496279]
[1726818500587,6.6415,150.57,150.48,20.2577605]
[1726818501188,43.72000229,150.59,150.48,0.2577605]
[1726818501388,37.07910229,150.59,150.48,0.2577605]
[1726818501687,6.76649,150.58,150.49,20.0]
[1726818501889,0.12549,150.56,150.49,20.0]
[1726818502409,0.12549,150.57,150.51,20.0]
[1726818503407,15.8619,150.59,150.51,20.0]
[1726818504307,24.027864,150.58,150.51,20.0]
[1726818505886,24.027864,150.58,150.53,20.0]
[1726818505887,23.776884,150.58,150.53,20.0]
[1726818506093,15.8619,150.59,150.53,21.32846314]
[1726818506899,15.8619,150.59,150.53,20.0]
[1726818507992,16.1483,150.63,150.56,21.21720229]
[1726818508190,16.1483,150.63,150.58,21.21720229]
[1726818509814,0.2577605,150.64,150.58,21.21720229]
[1726818513417,0.25098,150.63,150.57,20.0]
[1726818514912,0.2577605,150.64,150.57,20.0]
[1726818515111,0.2577605,150.64,150.58,21.21720229]
[1726818516517,0.2577605,150.64,150.58,20.0]
[1726818516903,24.153354,150.63,150.58,20.0]
[1726818517414,24.153354,150.63,150.57,20.0]
[1726818517630,24.153354,150.63,150.55,20.0]
[1726818518910,24.153354,150.63,150.53,23.53746729]
[1726818519097,24.153354,150.63,150.55,21.21720229]
[1726818520914,24.153354,150.63,150.57,21.21720229]
[1726818521302,0.2577605,150.64,150.57,22.54536497]
[1726818521496,0.2577605,150.64,150.59,21.21720229]
[1726818522819,0.2577605,150.64,150.61,21.21720229]
[1726818523527,0.2577605,150.64,150.59,20.0]
[1726818523710,0.2577605,150.64,150.6,21.21720229]
[1726818523912,0.2577605,150.64,150.61,20.0]
[1726818524822,0.2577605,150.64,150.59,20.0]
[1726818525310,0.2577605,150.64,150.61,20.0]
[1726818529529,0.2577605,150.64,150.58,21.21720229]
[1726818530724,0.2577605,150.64,150.59,20.0]
[1726818532427,0.2577605,150.64,150.59,21.32795485]
[1726818532831,0.2577605,150.64,150.59,20.0]
[1726818533936,0.2577605,150.64,150.61,13.55600759]
[1726818537615,0.2577605,150.64,150.63,13.55600759]
[1726818540030,0.2577605,150.64,150.61,13.55600759]
[1726818541608,0.2577605,150.64,150.63,13.55600759]
[1726818544113,0.2577605,150.64,150.6,20.0]
[1726818544426,0.2577605,150.64,150.63,13.55600759]
[1726818544827,0.2577605,150.64,150.63,33.55600759]
[1726818546523,0.1075807,150.66,150.64,20.0]
[1726818546730,0.2577605,150.69,150.66,20.0]
[1726818546930,0.2577605,150.69,150.68,33.55600759]
[1726818548135,0.2577605,150.69,150.68,41.15311142]
[1726818552141,0.2577605,150.69,150.67,20.0]
[1726818552518,0.2577605,150.69,150.68,41.15311142]
[1726818553228,0.2577605,150.69,150.68,20.0]
[1726818553528,0.2577605,150.69,150.67,20.0]
[1726818553841,0.2577605,150.69,150.64,21.15311142]
[1726818555235,0.2577605,150.69,150.65,20.0]
[1726818558830,0.2577605,150.69,150.66,21.15311142]
[1726818559336,0.2577605,150.69,150.67,20.0]
[1726818559632,0.2577605,150.69,150.63,20.0]
[1726818559633,0.2577605,150.69,150.68,41.15311142]
[1726818560220,0.4373365,150.75,150.69,20.0]
[1726818560537,0.4373365,150.75,150.71,21.15311142]
[1726818561041,0.4373365,150.75,150.7,20.0]
[1726818568042,0.4373365,150.75,150.72,13.53661077]
[1726818569644,0.4373365,150.75,150.69,20.0]
[1726818569844,0.4373365,150.75,150.69,13.53661077]
[1726818569845,23.776884,150.74,150.69,13.53661077]
[1726818570050,0.4373365,150.75,150.69,13.53661077]
[1726818571252,0.4373365,150.75,150.7,20.0]
[1726818571446,0.4373365,150.75,150.71,13.53661077]
[1726818571656,0.4373365,150.75,150.7,13.53661077]
[1726818573155,0.4373365,150.75,150.65,20.0]
[1726818573451,0.4373365,150.75,150.7,20.0]
[1726818573953,0.4373365,150.75,150.7,33.53661077]
[1726818574452,24.153354,150.74,150.64,6.2866]
[1726818574752,37.68996477,150.74,150.66,13.53661077]
[1726818575734,37.68996477,150.74,150.67,20.0]
[1726818576655,24.153354,150.74,150.67,20.0]
[1726818576853,37.68996477,150.74,150.67,20.0]
[1726818577734,0.4373365,150.75,150.67,33.53661077]
[1726818577939,13.97394727,150.75,150.67,33.53661077]
[1726818578955,24.153354,150.74,150.67,33.53661077]
[1726818579339,24.2142205,150.75,150.68,13.53661077]
[1726818579949,24.027864,150.74,150.68,13.53661077]
[1726818583256,23.776884,150.74,150.69,20.0]
[1726818583448,23.776884,150.74,150.65,20.0]
[1726818583449,0.4373365,150.75,150.7,13.53661077]
[1726818583762,0.4373365,150.75,150.72,13.53661077]
[1726818583962,0.4373365,150.75,150.66,0.37647]
[1726818584161,0.4373365,150.75,150.72,13.53661077]
[1726818586157,0.4373365,150.75,150.74,13.53661077]
[1726818586356,0.4373365,150.75,150.74,33.53661077]
[1726818587155,0.4373365,150.75,150.71,20.0]
[1726818587551,0.4373365,150.75,150.74,33.53661077]